Cogmind - Beta 15 *** ADVENTURER MODE // 2025.07.01 @ 20:00:30 Player: RED Result: Destroyed by L-41 Fighter with Axe Performance ------------- Evolutions (3) 1500 Regions Visited (6) 1200 Robots Destroyed (50) 250 Value Destroyed (1522) 1522 Prototype IDs (2) 40 Alien Tech Used (0) 0 Bonus (-30) -30 TOTAL SCORE: 4482 Bonus ------- Friendly Fire -30 Cogmind --------- Core Integrity 0/700 Matter 243/300 Energy 100/100 System Corruption 0% Temperature Cool (0) Movement Core (350) Ox6 Location -7/Lower Caves Parts ------- > --- POWER (2) -------- (None) > --- PROPULSION (3) --- (None) > --- UTILITY (4) ------ Large Storage Unit > --- WEAPON (4) ------- (None) > --- INVENTORY (15) --- Cryofiber Web Cryofiber Web Cooling System Compact Battery (200) Medium Matter Pod (100) Terrain Scanner Targeting Computer Kinecellerator Transmission Jammer Improved Light Armor Plating Hacking Suite High-powered Tractor Beam Peak State ------------ > --- POWER ------------ Light Deuterium Engine Micro Nuclear Core > --- PROPULSION ------- Aluminum Leg Improved Titanium Leg Improved Titanium Leg > --- UTILITY ---------- Large Storage Unit Improved Sensor Array Improved Signal Interpreter Transmission Jammer > --- WEAPON ----------- Improved EM Pulse Cannon Improved EM Pulse Cannon Precision Assault Rifle Grenade Launcher > --- INVENTORY -------- Light Deuterium Engine Aluminum Leg Cryofiber Web Cryofiber Web Cooling System Compact Battery Medium Matter Pod Terrain Scanner Targeting Computer Kinecellerator Improved Light Armor Plating Improved Shield Generator Hacking Suite High-powered Tractor Beam [Rating: 44] Favorites ----------- Power Light Deuterium Engine Engine Light Deuterium Engine Power Core Light Nuclear Core Propulsion Aluminum Leg Leg Aluminum Leg Utility Large Storage Unit Device Improved Sensor Array Storage Large Storage Unit Processor Improved Signal Interpreter Protection Improved Light Armor Plating Weapon Improved EM Pulse Cannon Energy Gun Improved EM Shotgun Energy Cannon Improved EM Pulse Cannon Ballistic Gun Assault Rifle Launcher Grenade Launcher Build | -11 -10 -10 -10 -8 -7 -7 ------- Run | Yrd Mat Min Sub Mat Fac Low Slots Evolved 6 | . . . . 4 2 . Power 1 | . . . . 1 . . Propulsion 1 | . . . . . 1 . Utility 2 | . . . . 1 1 . Weapon 2 | . . . . 2 . . Parts Attached 40 | 6 5 1 . 16 9 3 Power 7 | 1 1 . . 3 1 1 Engine 5 | 1 1 . . 2 . 1 Core 2 | . . . . 1 1 . Reactor . | . . . . . . . Propulsion 7 | 2 . . . 1 3 1 Treads . | . . . . . . . Leg 7 | 2 . . . 1 3 1 Wheel . | . . . . . . . Hover . | . . . . . . . Flight . | . . . . . . . Utility 13 | 1 3 1 . 3 4 1 Device 3 | . . . . . 2 1 Storage 6 | 1 2 1 . 1 1 . Processor 1 | . . . . . 1 . Hackware . | . . . . . . . Protection 3 | . 1 . . 2 . . Artifact . | . . . . . . . Weapon 13 | 2 1 . . 9 1 . Energy Gun 1 | . . . . 1 . . Energy Cannon 6 | . . . . 6 . . Ballistic Gun 4 | 2 . . . 1 1 . Ballistic Cannon . | . . . . . . . Launcher 2 | . 1 . . 1 . . Special Weapon . | . . . . . . . Impact Weapon . | . . . . . . . Slashing Weapon . | . . . . . . . Piercing Weapon . | . . . . . . . Special Melee Weapon . | . . . . . . . Unidentified Prototypes 2 | . . . . 1 1 . Parts Lost 14 | . 1 . . 1 2 10 Power 4 | . 1 . . . 1 2 Propulsion 3 | . . . . . . 3 Utility 2 | . . . . . . 2 Weapon 5 | . . . . 1 1 3 Highest Loss Streak 7 | . 1 . . 1 2 7 To Critical Strikes . | . . . . . . . Average Backups 10 | . 2 5 7 9 13 13 Power . | . . 1 1 . 1 . Propulsion . | . . . . . 1 . Utility 8 | . . 2 4 8 11 12 Weapon . | . . 1 2 . . . Tool/Special . | . . . . . . . Unused Backups 9 | . . . . . 1 8 Power . | . . . . . . . Propulsion . | . . . . . . . Utility 9 | . . . . . 1 8 Weapon . | . . . . . . . Tool/Special . | . . . . . . . Average Slot Usage (%) 93 | . 97 100 100 95 98 70 Engine 9 | . 14 14 14 12 6 . Core 4 | . . . . 5 7 6 Leg 21 | . 28 28 28 18 21 14 Device 6 | . . . . . 14 14 Storage 15 | . 19 28 28 18 7 7 Processor 2 | . . . . . 6 6 Protection 2 | . 6 . . 8 . . Energy Cannon 11 | . . . . 18 18 11 Ballistic Gun 9 | . 27 16 14 7 3 6 Launcher 6 | . . 11 14 6 6 . Peak Build Rating 44 | 6 7 7 7 29 44 36 Average Rating 23 | 4 6 7 7 21 40 33 On Entrance 13 | . 6 7 7 7 29 36 Naked Turns . | . . . . . . . Heaviest Build 59 | 14 33 30 30 59 56 46 Greatest Support 50 | 20 20 20 20 20 50 40 Greatest Overweight (x) 2 | 1 1 1 1 2 2 1 Average Overweight (x) 1 | . . 1 1 1 1 . Largest Inventory Capacity 15 | 8 15 15 15 15 15 15 Average Capacity 14 | 7 14 15 15 15 15 15 Most Carried 15 | 1 4 7 8 14 15 14 Average Carried 10 | . 2 5 7 9 13 13 Final Capacity 15 | 8 15 15 15 15 15 15 Final Carried 14 | 1 4 7 8 14 14 12 Class Distribution -------------------- 39% | Skirmisher 34% | Mutant 25% | Tank Dominant Class ---------------- Mutant | -10/Materials Mutant | -10/Mines Mutant | -10/Subcaves Tank | -8/Materials Skirmisher | -7/Factory Skirmisher | -7/Lower Caves Resources | -11 -10 -10 -10 -8 -7 -7 ----------- Run | Yrd Mat Min Sub Mat Fac Low Matter Collected 1125 | 133 98 185 51 375 184 99 Remotely . | . . . . . . . Salvage Created 1715 | . 243 87 . 719 631 35 Parts 88 | . 13 12 . 28 35 . Haulers Intercepted . | . . . . . . . Recyclers Shooed 2 | . 1 . . . 1 . Parts Field Recycled . | . . . . . . . Retrieved Matter . | . . . . . . . Parts Self-Destructed 2 | . . . 2 . . . Prevented . | . . . . . . . Kills | -11 -10 -10 -10 -8 -7 -7 ------- Run | Yrd Mat Min Sub Mat Fac Low Combat Hostiles Destroyed 41 | . 7 8 . 11 15 . Guns 11 | . 5 4 . 1 1 . Cannons 13 | . . . . 6 7 . AOE 13 | . 2 4 . 1 6 . Classes Destroyed 10 | . 5 . . 4 1 . Builder 2 | . 1 . . . 1 . Recycler 2 | . 1 . . . 1 . Mechanic 1 | . . . . 1 . . Watcher 4 | . 1 . . 2 1 . Swarmer 18 | . 3 8 . . 7 . Grunt 16 | . 4 . . 7 5 . Brawler 1 | . . . . 1 . . Duelist 1 | . . . . 1 . . Sentry 3 | . . . . 2 1 . Programmer 2 | . . . . . 2 . Best Kill Streak 6 | . 6 3 . 4 6 . Combat Bots Only 4 | . 3 3 . 3 4 . Max Kills in Single Turn 3 | . 2 3 . 2 2 . Gunslinging . | . . . . . . . Exploded 3 | . 1 3 . 1 2 . Melee . | . . . . . . . Uniques/NPCs Destroyed . | . . . . . . . Combat | -11 -10 -10 -10 -8 -7 -7 -------- Run | Yrd Mat Min Sub Mat Fac Low Hostile Shots Fired 370 | . 55 34 3 38 127 113 Missed 102 | . 6 7 3 12 44 30 Hits 268 | . 49 27 . 26 83 83 Melee 22 | . . . . 3 . 19 Projectile 246 | . 49 27 . 23 83 64 Critical Strikes 10 | . . . . 2 2 6 Damage Taken 2814 | . 372 163 . 324 702 1253 Core 923 | . 89 62 . 66 76 630 Absorbed by Shields 98 | . . . . . . 98 Ignored by Resistances 859 | . 124 54 . 96 218 367 Regen/Repaired (Parts) 23 | . . . . . 23 . Core Remaining (%) 75 | 100 . . 39 88 . . Volleys Fired 125 | . 20 12 8 32 39 14 Largest 4 | . 2 2 1 3 4 2 Hottest 237 | . 50 50 20 189 237 97 Shots Fired 205 | . 40 22 8 59 59 17 Gun 108 | . 37 20 8 9 20 14 Cannon 84 | . . . . 50 31 3 Launcher 13 | . 3 2 . . 8 . Special . | . . . . . . . Kinetic 108 | . 37 20 8 9 20 14 Thermal . | . . . . . . . Explosive 13 | . 3 2 . . 8 . Electromagnetic 84 | . . . . 50 31 3 Robot Hit Streak 15 | . 15 8 9 13 10 8 Robot Miss Streak 4 | . 3 4 . 4 2 1 Penetration Max . | . . . . . . . Secondary Targets 1 | . 1 . . . . . Max Gunslinging Chain 1 | . 1 . . . . . Shots Hit Robots 147 | . 25 12 8 42 45 15 Core Hits 75 | . 13 9 1 18 31 3 Critical Kills . | . . . . . . . Critical Parts Destroyed . | . . . . . . . Critical Strikes 2 | . . . . . 2 . Corrupt 2 | . . . . . 2 . Melee Attacks . | . . . . . . . Impact . | . . . . . . . Slashing . | . . . . . . . Piercing . | . . . . . . . Sneak Attacks . | . . . . . . . Combat Hostiles . | . . . . . . . Follow-up Attacks . | . . . . . . . Damage Inflicted 4232 | . 758 380 88 1239 1466 301 Guns 1288 | . 361 123 88 80 383 253 Cannons 1515 | . . . . 983 484 48 Explosions 1412 | . 397 249 . 176 590 . Melee . | . . . . . . . Ramming 17 | . . 8 . . 9 . Kinetic 1288 | . 361 123 88 80 383 253 Thermal 249 | . . . . 176 73 . Explosive 1163 | . 397 249 . . 517 . Electromagnetic 1515 | . . . . 983 484 48 Impact . | . . . . . . . Slashing . | . . . . . . . Piercing . | . . . . . . . Highest Corruption . | . . . . . . . Average Corruption . | . . . . . . . Corruption Purged . | . . . . . . . Corruption Blocked . | . . . . . . . Overload Shots . | . . . . . . . Overflow Damage 79 | . . 20 . 20 32 7 Projectiles 59 | . . . . 20 32 7 Explosions 20 | . . 20 . . . . Melee . | . . . . . . . Knockbacks . | . . . . . . . Impact . | . . . . . . . Kinetic . | . . . . . . . Secondary . | . . . . . . . Self-Inflicted Damage 37 | . . . . 17 20 . Shots 2 | . . . . 1 1 . Rammed . | . . . . . . . Targets Rammed 3 | . . 1 . . 2 . Kicked 3 | . . 1 . . 2 . Crushed . | . . . . . . . Highest Temperature 321 | . 19 . . 321 273 45 Average Temperature 107 | . 7 . . 119 117 17 Received Heat Transfer 820 | . 204 . . 207 195 214 Effects 4 | . . . . 3 1 . Energy Bleed 1 | . . . . 1 . . Interference 3 | . . . . 2 1 . Siege Activations . | . . . . . . . Martial Activations . | . . . . . . . Shielding Activations . | . . . . . . . Robots Disrupted . | . . . . . . . Combat Hostiles . | . . . . . . . Robots Corrupted 4 | . . . . 3 1 . Combat Hostiles 4 | . . . . 3 1 . Parts Fried 11 | . . . . 8 3 . Impact Corruptions . | . . . . . . . Robots Melted . | . . . . . . . Combat Hostiles . | . . . . . . . Parts Melted 1 | . . . . . 1 . Heat Transferred 250 | . . . . 150 100 . Parts Sabotaged . | . . . . . . . Parts Stolen . | . . . . . . . Parts Stripped . | . . . . . . . Power Chain Reactions 4 | . . . . 3 1 . Alert | -11 -10 -10 -10 -8 -7 -7 ------- Run | Yrd Mat Min Sub Mat Fac Low Maximum Alert Level . | . . . . . . . Low Security (%) 100 | 100 100 100 . 100 100 . Level 1 . | . . . . . . . Level 2 . | . . . . . . . Level 3 . | . . . . . . . Level 4 . | . . . . . . . Level 5 . | . . . . . . . High Security . | . . . . . . . Max Security . | . . . . . . . Peak Influence 176 | . 176 106 . 115 117 . Initial 47 | . . 47 . . . . Average 32 | . 86 26 . 31 27 . Influence Increases 1236 | . 239 208 . 339 435 15 Destroy 0b10 Robot/C 820 | . 140 160 . 220 300 . Destroy 0b10 Robot/NC 45 | . 15 . . 15 15 . Destroy Leader 168 | . 22 30 . 54 62 . Successful Hack 17 | . 3 . . . 14 . Disable Machine 45 | . 18 . . 9 18 . Destroy Structure 96 | . 41 18 . 11 26 . Lose Combat Pursuer 45 | . . . . 30 . 15 Influence Decreases 1236 | . 93 305 49 339 338 112 Entered New Map 173 | . . 99 30 . . 44 Time Decay 1008 | . 83 206 19 329 318 53 Lost Part 55 | . 10 . . 10 20 15 Squads Dispatched 8 | . 1 . . 1 6 . Investigation 3 | . 1 . . 1 1 . Extermination 2 | . . . . . 2 . Reinforcement 2 | . . . . . 2 . Assault . | . . . . . . . Garrison 1 | . . . . . 1 . Intercept . | . . . . . . . Searches Triggered . | . . . . . . . Construction Impeded . | . . . . . . . Haulers Reinforced . | . . . . . . . Active Scanning Responses . | . . . . . . . Cargo Convoy Interrupts . | . . . . . . . Stealth | -11 -10 -10 -10 -8 -7 -7 --------- Run | Yrd Mat Min Sub Mat Fac Low Distress Signals 1 | . . . . . 1 . Communications Jammed 15 | . . . . . 15 . Distress Signals 15 | . . . . . 15 . Times Spotted 68 | . 11 9 3 20 21 4 Peak Tracking Total 5 | . 5 3 2 5 5 4 Tactical Retreats 3 | . . . . 2 . 1 Traps | -11 -10 -10 -10 -8 -7 -7 ------- Run | Yrd Mat Min Sub Mat Fac Low Traps Triggered 1 | . . . . . 1 . Indirectly . | . . . . . . . Trap Hack Attempts . | . . . . . . . Triggered . | . . . . . . . Disarmed . | . . . . . . . Reprogrammed . | . . . . . . . Reused . | . . . . . . . Traps Extracted . | . . . . . . . Installed . | . . . . . . . Triggered . | . . . . . . . Machines | -11 -10 -10 -10 -8 -7 -7 ---------- Run | Yrd Mat Min Sub Mat Fac Low Machines Disabled 5 | . 2 . . 1 2 . Max in Single Turn 2 | . 2 . . 1 1 . Machines Repaired . | . . . . . . . Machines Dismantled . | . . . . . . . Machines Sabotaged . | . . . . . . . Overloaded Fab Kills . | . . . . . . . Hacking | -11 -10 -10 -10 -8 -7 -7 --------- Run | Yrd Mat Min Sub Mat Fac Low Machines Accessed 5 | . 1 . . 1 3 . Terminals 3 | . 1 . . 1 1 . Fabricators . | . . . . . . . Repair Stations 1 | . . . . . 1 . Recycling Units 1 | . . . . . 1 . Scanalyzers . | . . . . . . . Garrison Access . | . . . . . . . Total Hacks 17 | . 6 . . 3 8 . Successful 9 | . 3 . . 3 3 . Failed 8 | . 3 . . . 5 . Catastrophic . | . . . . . . . Database Lockouts . | . . . . . . . Manual . | . . . . . . . Terminals 13 | . 6 . . 3 4 . Fabricators . | . . . . . . . Repair Stations 3 | . . . . . 3 . Recycling Units 1 | . . . . . 1 . Scanalyzers . | . . . . . . . Garrison Access . | . . . . . . . Terminal Hacks 7 | . 3 . . 3 1 . Record 4 | . 1 . . 3 . . Open DSF 1 | . . . . . 1 . Dispatch Records 1 | . 1 . . . . . Zone Layout 1 | . 1 . . . . . Fabricator Hacks . | . . . . . . . Repair Station Hacks 2 | . . . . . 2 . Scan Component 1 | . . . . . 1 . Repair 1 | . . . . . 1 . Recycling Unit Hacks . | . . . . . . . Scanalyzer . | . . . . . . . Garrison Access Hacks . | . . . . . . . Unauthorized Hacks . | . . . . . . . Terminals . | . . . . . . . Fabricators . | . . . . . . . Repair Stations . | . . . . . . . Recycling Units . | . . . . . . . Scanalyzers . | . . . . . . . Garrison Access . | . . . . . . . Data Cores Recovered . | . . . . . . . Used . | . . . . . . . Hacking Detections 5 | . 1 . . 1 3 . Full Trace Events 3 | . 1 . . 1 1 . Feedback Events . | . . . . . . . Feedback Blocked . | . . . . . . . Robot Schematics Acquired . | . . . . . . . Robots Built . | . . . . . . . Authchips . | . . . . . . . Time . | . . . . . . . Total Robot Build Rating . | . . . . . . . Part Schematics Acquired . | . . . . . . . Parts Built . | . . . . . . . Authchips . | . . . . . . . Time . | . . . . . . . Total Part Build Rating . | . . . . . . . Parts Repaired 1 | . . . . . 1 . Time 19 | . . . . . 19 . Parts Recycled . | . . . . . . . Recycled Matter . | . . . . . . . Retrieved Matter . | . . . . . . . Retrieved Components . | . . . . . . . Parts Scanalyzed . | . . . . . . . Part Schematics Acquired . | . . . . . . . Parts Damaged . | . . . . . . . Bothacking | -11 -10 -10 -10 -8 -7 -7 ------------ Run | Yrd Mat Min Sub Mat Fac Low Used RIF Installer . | . . . . . . . Robots Hacked . | . . . . . . . Non-combat . | . . . . . . . Combat . | . . . . . . . Robot Hacks Applied . | . . . . . . . Relay Couplers Released . | . . . . . . . Fabnet Peak Effective % . | . . . . . . . Robots Rewired . | . . . . . . . Allies Hacked . | . . . . . . . Hacks Repelled . | . . . . . . . Allies | -11 -10 -10 -10 -8 -7 -7 -------- Run | Yrd Mat Min Sub Mat Fac Low Total Allies . | . . . . . . . Largest Group . | . . . . . . . Highest-Rated Group . | . . . . . . . Highest-Rated Ally . | . . . . . . . Total Orders . | . . . . . . . Ally Attacks . | . . . . . . . Total Damage . | . . . . . . . Kills . | . . . . . . . Allies Corrupted . | . . . . . . . Allies Melted . | . . . . . . . Intel | -11 -10 -10 -10 -8 -7 -7 ------- Run | Yrd Mat Min Sub Mat Fac Low Active Infowar (turns) 1755 | . . . . . 1076 679 Sensors 1146 | . . . . . 1040 106 Jamming 1650 | . . . . . 1076 574 Robot Analysis Total . | . . . . . . . Derelict Logs Recovered 2 | . . 1 . . . 1 Drone Launches . | . . . . . . . Drone Recoveries . | . . . . . . . Exploration | -11 -10 -10 -10 -8 -7 -7 ------------- Run | Yrd Mat Min Sub Mat Fac Low Turns Passed 4111 | 63 237 891 75 1060 1078 707 Spaces Moved 1526 | 47 79 442 29 282 324 323 Core 5 | 5 . . . . . . Treads . | . . . . . . . Legs 1521 | 42 79 442 29 282 324 323 Wheels . | . . . . . . . Hover . | . . . . . . . Flight . | . . . . . . . Fastest Speed 50 | 50 120 190 190 190 193 123 Average Speed 198 | 114 185 190 190 236 196 192 Slowest Speed 260 | 120 190 190 190 260 260 195 Overloaded Moves . | . . . . . . . Propulsion Burnouts . | . . . . . . . Robots Hopped . | . . . . . . . Potential Cave-ins . | . . . . . . . Cave-ins Triggered . | . . . . . . . Exploration Rate (%) 24 | 4 23 76 4 20 9 37 Regions Visited 6 Branch Regions 3 Pre-discovered Areas 2 | . . 2 . . . . Known Exits Taken 1 | . . . . . 1 . Unknown Exits Taken 5 | 1 1 1 1 1 . . Scrap Searched 2 | . . 2 . . . . Spaces Dug . | . . . . . . . Terrain Destroyed 99 | . 44 18 . 10 27 . Melee . | . . . . . . . Projectile . | . . . . . . . AOE 99 | . 44 18 . 10 27 . Terrain Rammed . | . . . . . . . Walls Destroyed . | . . . . . . . Machines Disabled . | . . . . . . . Actions | -11 -10 -10 -10 -8 -7 -7 --------- Run | Yrd Mat Min Sub Mat Fac Low Total 2415 | 53 128 470 41 627 706 390 Wait 667 | . 19 11 4 261 322 50 Move 1520 | 46 78 441 28 281 323 323 Hop . | . . . . . . . Pick Up 29 | 1 4 3 1 18 2 . Fast Attach 24 | 6 2 . . 8 8 . Attach 15 | . 1 . . 10 2 2 Detach 2 | . . . . 1 1 . Swap 9 | . 3 2 . 1 2 1 Drop 21 | . 1 . . 15 5 . Fire 125 | . 20 12 8 32 39 14 Melee . | . . . . . . . Ram . | . . . . . . . Kick 3 | . . 1 . . 2 . Crush . | . . . . . . . Escape Stasis . | . . . . . . . Rewire . | . . . . . . . Trap . | . . . . . . . Miscellaneous . | . . . . . . . Route ------- -11/Scrapyard -10/Materials -10/Mines -10/Subcaves -8/Materials -7/Factory -7/Lower Caves History --------- Turn | Location | Event 2 | -11/Scrapyard | Met Revision 17 3 | -11/Scrapyard | Discovered new exit (range 16) 64 | -11/Scrapyard | Entered Materials 272 | -10/Materials | Discovered new exit (range 12) 301 | -10/Materials | Entered Mines 322 | -10/Mines | Build established: Mutant 403 | -10/Mines | Learned location of Storage (-8) 456 | -10/Mines | Core integrity fell below 50% 512 | -10/Mines | Learned location of Zion (-7) 1179 | -10/Mines | Discovered new exit (range 8) 1192 | -10/Mines | Entered Subcaves 1193 | -10/Subcaves | Approached by a straggling Scientist 1218 | -10/Subcaves | Discovered new exit (range 5) 1267 | -10/Subcaves | Entered Materials 1267 | -8/Materials | Evolved 4 slots: Power x1, Utility x1, Weapon x2 1587 | -8/Materials | Build established: Tank 2214 | -8/Materials | Discovered new exit (range 13) 2327 | -8/Materials | Entered Factory 2327 | -7/Factory | Evolved 2 slots: Propulsion x1, Utility x1 2625 | -7/Factory | Build established: Skirmisher 2661 | -7/Factory | Repaired Lgt. Deuterium Engine 3370 | -7/Factory | Garrison activated, responded to threat 3393 | -7/Factory | Discovered new exit (range 7) 3403 | -7/Factory | Identified exit to Lower Caves 3405 | -7/Factory | Entered Lower Caves 3900 | -7/Lower Caves | Spotted B-75 Beast 3920 | -7/Lower Caves | Learned Factory terminal intel 3955 | -7/Lower Caves | Encountered a Warlord checkpoint 4091 | -7/Lower Caves | Core integrity fell below 50% 4104 | -7/Lower Caves | Core integrity fell below 20% 4112 | -7/Lower Caves | Destroyed by L-41 Fighter with Axe Last Messages --------------- 03997_ Aluminum Leg destroyed. 04001_ Acquired 1 matter. 04028_ NH-V73(c): "I like it here. It's the perfect spot where no one bothers me, for obvious reasons." 04046_ Imp. Signal Interpreter blasted off. 04046_ Mic. Nuclear Core destroyed. 04074_ Critical hit (Burn: +26). 04075_ Lgt. Deuterium Engine destroyed. 04075_ Imp. Shield Generator destroyed. 04078_ Knocked back. 04078_ Aluminum Leg destroyed. 04081_ Imp. Titanium Leg destroyed. 04082_ Critical hit (Burn: +37). 04084_ Imp. Sensor Array destroyed. 04084_ Prc. Assault Rifle destroyed. 04085_ Machine disabled. 04105_ L-41 Fighter suffers critical hit (Burn). 04107_ G-47 Trooper destroyed. 04108_ Z8-QLN(l) destroyed. Map ----- +----------------------------------------------------+ | ?????????????????????????????????????????????????? | | ?????????????????????????????????????????????????? | | ?????????????????????????????????????????????????? | | ?????????????????????????????????????????????????? | | ??????????????? ?????????????????????????????????? | | ?????????????? ????????????????????????????????? | | ??###?????????? ????????????????????????????????? | | ?## #?????????? ???????????????????????????????? | | ## #????????? #??????????????????????????????? | | # "#????????? #?###?????????????????????????? | | # ##????????# ## ##????????????????????????? | | # ##???????# ?????????????????????????? | | # ????????? ?????????????????????????? | | # ?????????? #?????????????????????????? | | # %######?????? #?????????????????????????? | | # $ #??????# #?????????????????????????? | | # #?????## %#?????????????????????????? | | # ### #??####; ####??????????????????????? | | ### #"" ### #### #??????????????????????? | | ??# "## #??????????????????????? | | ??# % ## #### "" #??????????????????????? | | ??# % #??## #??????????????????????? | | ??## "#???# ###????????????????????? | | ???# ""# ##???# "" %""##???????????????????? | | ???# "## #????# " lg c ##??????????????????? | | ???## "" ####??# @## #??????????????????? | | ???## ### ###;=% BB ;## #??????????????????? | | ### #?# * BB % # ##??????????????????? | | "### ;####### ###???????????####?? | | !% l #### # #????????#### ##? | | %%"#### #???????## #? | | #### % ##?????## # #? | | ##??## ####### #?? | | ##????# ## ## # ## ##?? | | "??????# ## ### #### # # # #??? | | "??????# ## #?# #??# #?# # #??? | | ?????# #?## ##??# ### # #??? | | ###?#### ##### # ###??## ## # #??? | | #?### ### ######???## #??? | | "## #???????## ##?? | | ## ## #???????# ##? | | ??# ### ##??????# ## | | ??########## ## ##????## ### | | ??? ????????????## ###### ##?## | | ?????????????????## # ##???## | | ??????????????????# # """" ##?????### | | ??????????????????# # """" ##???????## | | ??????????????????# # """" #????????## | | ??????????????????# ## #???????##### | | ??????????????????# ###### #??????## #?# | +----------------------------------------------------+ Best States ------------- Heat Dissipation 34 Energy Generation 24 Energy Capacity 400 Matter Stores 400 Matter Capacity 500 Sight Range 16 Robot Scan Range 15 Terrain Scan Density 10 Jamming Range 12 Armor Coverage 150 Resistance: KI 20 Resistance: TH 20 Resistance: EX 20 Resistance: EM 20 Resistance: I 20 Resistance: S 20 Resistance: P 20 Evasion (%) 55 Offensive Hacking 10 Item Schematics ----------------- None Robot Schematics ------------------ None Fabricated ------------ Nothing Repaired ---------- Lgt. Deuterium Engine | 54% | -7/Factory Alien Tech Used ----------------- None Achievements -------------- I Spy Made in Tau Ceti IV Power Corrupts Total Silence Tourist Challenges ------------ None Game ------ Seed ArcsightEncryptedStrikerail Manual? 0 Play Time 00:35:21 Cumulative 2.4 hours Start 2025.07.01 @ 19:22:14 End 2025.07.01 @ 20:00:30 Sessions 1 Manual Loads 0 Difficulty Adventurer Special Mode None Game No. 4 Rogue 0 Adventurer 4 Explorer 0 Win Type - Total 0 Types 0/0/0/0/0/0/0/0/0/0 Lore% 0 Gallery% 6 Achievement% 6 Wizard Run 0 Options --------- Layout 1 ASCII 0 Keyboard 0 Movement Mouse Keybinds 0 Fullscreen 1 Font 24/Smallcaps Map View 50x35 Zoom Use 0% Tactical HUD 1 Map Filters NONE Filters NONE Steam 1 RUN: 7ca864fa-6734-4964-ae43-f2ac68dc2260